fUSD/lending_fUSD_20260405
["ID","MTS","AMOUNT","RATE_DAILY","PERIOD"]
[419812199,1775393463649,-151.0,0.00019937,2]
[419812200,1775393463659,-66387.56854927,0.0001995,15]
[419812201,1775393463669,-1572.0,0.00019977,2]
[419812202,1775393463679,-6579.8,0.00019985,2]
[419812203,1775393463688,-500.0,0.00019992,2]
[419812204,1775393463698,-151.0,0.00019992,2]
[419812205,1775393463708,-719.68,0.00019999,2]
[419812206,1775393463717,-295.7,0.0002,2]
[419812207,1775393463727,-3408.250468,0.0002,2]
[419812208,1775393463738,-310.0,0.0002,2]
[419812209,1775393463748,-365.53226171,0.0002,120]
[419812210,1775393463758,-233.48885417,0.0002,30]
[419812211,1775393463768,-809.81901584,0.0002,20]
[419812212,1775393463778,-26647.72204221,0.0002,2]
[419812213,1775393463787,-1921.35304123,0.0002,120]
[419812214,1775393463796,-1503.78074956,0.0002,2]
[419812215,1775393463806,-160.0,0.0002,3]
[419812216,1775393463816,-200.0,0.0002,3]
[419812217,1775393463825,-200.0,0.0002,10]
[419812218,1775393463835,-825.0,0.0002,30]
[419812219,1775393463844,-706.0,0.0002,2]
[419812220,1775393463853,-150.56853345,0.0002,20]
[419812221,1775393463864,-151.0,0.00020003,5]
[419812222,1775393463875,-1048.98200346,0.00020027,2]
[419812223,1775393463885,-500.0,0.00020047,2]
[419812224,1775393463895,-151.0,0.00020047,2]
[419812225,1775393463905,-423.0,0.00020061,2]
[419812226,1775393463915,-1189.0,0.00020082,10]
[419812227,1775393463924,-1074.0,0.00020082,10]
[419812228,1775393463935,-234.3229734,0.00020088,2]
[419812229,1775393463946,-2000.0,0.000201,2]
[419812230,1775393463958,-300.0,0.000201,10]
[419812231,1775393463969,-266.0,0.00020102,2]
[419812232,1775393463979,-500.0,0.00020102,2]
[419812233,1775393463989,-151.0,0.00020102,2]
[419812234,1775393463998,-1048.98200346,0.0002011,2]
[419812235,1775393464008,-440.0,0.00020113,2]
[419812236,1775393464020,-695.0,0.00020119,2]
[419812237,1775393464030,-200.0,0.00020155,2]
[419812238,1775393464041,-217.15233878,0.00020155,2]
[419812239,1775393464051,-1481.23780761,0.00020155,2]
[419812240,1775393464061,-339.62894544,0.00020155,2]
[419812241,1775393464073,-181.08010149,0.00020155,2]
[419812242,1775393464084,-771.01748645,0.00020155,2]
[419812243,1775393464095,-200.0,0.00020155,2]
[419812244,1775393464105,-719.04747942,0.00020155,2]
[419812245,1775393464114,-290.26104003,0.00020155,2]
[419812246,1775393464124,-500.0,0.00020157,2]
[419812247,1775393464134,-151.0,0.00020157,2]
[419812248,1775393464143,-1048.98200346,0.00020192,2]
[419812249,1775393464153,-359.0,0.00020195,2]
[419812250,1775393464162,-719.68,0.00020196,2]
[419812251,1775393464172,-719.68,0.00020196,2]
[419812252,1775393464181,-719.68,0.00020196,2]
[419812253,1775393464190,-719.68,0.00020196,2]
[419812254,1775393464200,-719.68,0.00020196,2]
[419812255,1775393464209,-719.68,0.00020196,2]
[419812256,1775393464221,-751.29,0.00020196,2]
[419812257,1775393464231,-751.29,0.00020196,2]
[419812258,1775393464241,-751.29,0.00020196,2]
[419812259,1775393464251,-751.29,0.00020196,2]
[419812260,1775393464261,-751.29,0.00020196,2]
[419812261,1775393464271,-751.29,0.00020196,2]
[419812262,1775393464282,-806.66,0.00020196,2]
[419812263,1775393464292,-806.66,0.00020196,2]
[419812264,1775393464302,-806.66,0.00020196,2]
[419812265,1775393464312,-806.66,0.00020196,2]
[419812266,1775393464322,-806.66,0.00020196,2]
[419812267,1775393464332,-806.66,0.00020196,2]
[419812268,1775393464344,-1268.28,0.00020196,2]
[419812269,1775393464354,-1268.28,0.00020196,2]
[419812270,1775393464363,-1268.28,0.00020196,2]
[419812271,1775393464373,-1268.28,0.00020196,2]
[419812272,1775393464382,-1268.28,0.00020196,2]
[419812273,1775393464392,-1268.28,0.00020196,2]
[419812274,1775393464401,-200.0,0.000202,2]
[419812275,1775393464410,-440.0,0.00020219,2]
[419812276,1775393464420,-150.0,0.00020248,2]
[419812277,1775393464429,-440.0,0.00020251,2]
[419812278,1775393464440,-336.0,0.00020269,2]
[419812279,1775393464449,-1048.98200346,0.00020274,2]
[419812280,1775393464458,-350.0,0.00020274,2]
[419812281,1775393464468,-350.0,0.00020274,2]
[419812282,1775393464477,-272.0,0.00020318,2]
[419812283,1775393464486,-202.0,0.00020331,2]
[419812284,1775393464496,-1850.89,0.00020356,2]
[419812285,1775393464505,-1048.98200346,0.00020356,2]
[419812286,1775393464735,-878.0,0.000204,2]
[419812287,1775393464760,-313.0,0.000204,2]
[419812288,1775393464771,-508.0,0.00020408,8]
[419812289,1775393464782,-1048.98200346,0.00020411,2]
[419812290,1775393464791,-1058.57,0.0002043,30]
[419812291,1775393464801,-1115.0,0.00020439,2]
[419812292,1775393464811,-150.0,0.00020441,2]
[419812293,1775393464821,-150.0,0.0002049,2]
[419812294,1775393464831,-150.0,0.0002049,2]
[419812295,1775393464840,-150.0,0.0002049,2]
[419812296,1775393464850,-150.0,0.0002049,2]
[419812297,1775393464860,-1048.98200346,0.00020493,2]
[419812298,1775393464870,-250.0,0.00020502,2]
[419812299,1775393464882,-1000.0,0.00020513,2]
[419812300,1775393464892,-1048.98200346,0.00020575,2]
[419812301,1775393464903,-411.4887,0.000206,2]
[419812302,1775393464912,-2000.0,0.00020629,2]
[419812303,1775393464922,-532.40918815,0.00020629,2]
[419812304,1775393464932,-1048.98200346,0.00020658,2]
[419812305,1775393464943,-150.0,0.000207,30]
[419812306,1775393464953,-200.0,0.00020703,2]
[419812307,1775393464964,-225.18697532,0.00020703,2]
[419812308,1775393464975,-1536.04360649,0.00020703,2]
[419812309,1775393464984,-187.78006525,0.00020703,2]
[419812310,1775393464995,-799.54513345,0.00020703,2]
[419812311,1775393465006,-200.0,0.00020703,2]
[419812312,1775393465016,-745.65223616,0.00020703,2]
[419812313,1775393465025,-301.00069851,0.00020703,2]
[419812314,1775393465034,-1048.98200346,0.0002074,2]
[419812315,1775393465044,-1592.56,0.00020764,2]
[419812316,1775393465055,-1048.98200346,0.00020822,2]
[419812317,1775393465065,-450.0,0.00020822,2]
[419812318,1775393465075,-450.0,0.00020822,2]
[419812319,1775393465084,-1048.98200346,0.00020904,2]
[419812320,1775393465093,-9240.47610541,0.00021,2]
[419812321,1775393465103,-1202.76626108,0.00021,2]
[419812322,1775393465112,-198.50929139,0.00021,2]
[419812323,1775393465124,-2289.72062632,0.00021,30]
[419812324,1775393465133,-450.0,0.00021,2]
[419812325,1775393465143,-160.0,0.00021,30]
[419812326,1775393465154,-151.0,0.00021003,5]
[419812327,1775393465165,-1046.0,0.0002102,2]
[419812328,1775393465175,-1347.0,0.0002102,2]
[419812329,1775393465187,-3522.0,0.0002102,2]
[419812330,1775393465197,-1263.0,0.0002102,2]
[419812331,1775393465207,-150.0,0.0002102,2]
[419812332,1775393465217,-415.0,0.0002102,2]
[419812333,1775393465228,-3770.0,0.0002102,2]
[419812334,1775393465239,-24793.0,0.00021052,2]
[419812335,1775393465249,-500.0,0.00021151,2]
[419812336,1775393465259,-205.0,0.00021179,8]
[419812337,1775393465268,-1025.0,0.0002121,8]
[419812338,1775393465278,-1748.0,0.00021233,5]
[419812339,1775393465287,-2029.0,0.00021233,5]
[419812340,1775393465296,-1970.0,0.00021233,5]
[419812341,1775393465306,-200.0,0.00021251,2]
[419812342,1775393465315,-233.51889341,0.00021251,2]
[419812343,1775393465325,-1592.87721993,0.00021251,2]
[419812344,1775393465337,-194.72792766,0.00021251,2]
[419812345,1775393465347,-829.12830338,0.00021251,2]
[419812346,1775393465356,-200.0,0.00021251,2]
[419812347,1775393465366,-773.2413689,0.00021251,2]
[419812348,1775393465375,-284.74539875,0.00021251,2]
[419812349,1775393465385,-6434.64,0.0002137,2]
[419812350,1775393465396,-550.0,0.0002137,2]
[419812351,1775393465406,-550.0,0.0002137,2]
[419812352,1775393465417,-58029.73186287,0.000215,2]
[419812353,1775393465427,-223.97233019,0.000215,2]
[419812354,1775393465437,-151.0,0.000215,2]
[419812355,1775393465447,-151.0,0.000215,2]
[419812356,1775393465456,-1115.0,0.00021515,2]
[419812357,1775393465465,-1787.8,0.00021595,2]
[419812358,1775393465475,-508.0,0.00021624,9]
[419812359,1775393465484,-6579.8,0.00021758,2]
[419812360,1775393465494,-174.464972,0.00021758,2]
[419812361,1775393465504,-174.464972,0.00021758,2]
[419812362,1775393465514,-174.464972,0.00021758,2]
[419812363,1775393465524,-174.464972,0.00021758,2]
[419812364,1775393465533,-200.0,0.00021799,2]
[419812365,1775393465543,-301.04884516,0.00021799,2]
[419812366,1775393465552,-1651.81367706,0.00021799,2]
[419812367,1775393465562,-201.93286099,0.00021799,2]
[419812368,1775393465571,-756.21291269,0.00021799,2]
[419812369,1775393465580,-200.0,0.00021799,2]
[419812370,1775393465589,-245.70032162,0.00021799,2]
[419812371,1775393465599,-1235.0,0.00021855,30]
[419812372,1775393465608,-205.77,0.00021873,2]
[419812373,1775393465618,-200.08683734,0.000219,30]
[419812374,1775393465628,-151.0,0.000219,2]
[419812375,1775393465637,-151.0,0.000219,2]
[419812376,1775393465647,-151.0,0.000219,2]
[419812377,1775393465657,-500.0,0.000219,30]
[419812378,1775393465666,-1000.0,0.000219,30]
[419812379,1775393465676,-500.0,0.000219,30]
[419812380,1775393465685,-1000.0,0.000219,30]
[419812381,1775393465695,-500.0,0.000219,30]
[419812382,1775393465705,-1082.72,0.000219,30]
[419812383,1775393465714,-500.0,0.000219,30]
[419812384,1775393465724,-650.23,0.000219,30]
[419812385,1775393465734,-707.84,0.000219,30]
[419812386,1775393465743,-500.0,0.000219,30]
[419812387,1775393465753,-1000.0,0.000219,30]
[419812388,1775393465763,-500.0,0.000219,30]
[419812389,1775393465772,-1000.0,0.000219,30]
[419812390,1775393465782,-500.0,0.000219,30]
[419812391,1775393465791,-1000.0,0.000219,30]
[419812392,1775393465801,-500.0,0.000219,30]
[419812393,1775393465811,-1000.0,0.000219,30]
[419812394,1775393465820,-500.0,0.000219,30]
[419812395,1775393465831,-1000.0,0.000219,30]
[419812396,1775393465841,-500.0,0.000219,30]
[419812397,1775393465852,-1000.0,0.000219,30]
[419812398,1775393465862,-446.84,0.000219,30]
[419812399,1775393465872,-500.0,0.000219,30]
[419812400,1775393465882,-1000.0,0.00021918,2]
[419812401,1775393465892,-1000.0,0.00021918,2]
[419812402,1775393465902,-1000.0,0.00021918,2]
[419812403,1775393465911,-1000.0,0.00021918,2]
[419812404,1775393465920,-565.0,0.00021918,2]
[419812405,1775393465931,-3060.8,0.00021918,2]
[419812406,1775393465940,-5000.0,0.00021918,2]
[419812407,1775393465951,-2000.0,0.00021918,7]
[419812408,1775393465961,-650.0,0.00021918,2]
[419812409,1775393465972,-650.0,0.00021918,2]
[419812410,1775393465982,-150.0,0.00021918,2]
[419812411,1775393465993,-500.0,0.00021918,2]
[419812412,1775393466003,-500.0,0.00021918,2]
[419812413,1775393466014,-500.0,0.00021918,2]
[419812414,1775393466024,-220.22563589,0.00021918,2]
[419812415,1775393466033,-150.0,0.00021918,2]
[419812416,1775393466043,-168.69625025,0.00021993,9]
[419812417,1775393466052,-1330.60815802,0.00022,30]
[419812418,1775393466063,-164.92,0.00022,2]
[419812419,1775393466072,-160.0,0.00022,2]
[419812420,1775393466082,-1464.0,0.00022,2]
[419812421,1775393466093,-1206.0,0.00022,2]
[419812422,1775393466102,-151.0,0.00022,2]
[419812423,1775393466112,-151.0,0.00022,2]
[419812424,1775393466122,-749.0,0.00022,2]
[419812425,1775393466132,-153.0,0.00022,2]
[419812426,1775393466144,-1356.0,0.00022,2]
[419812427,1775393466154,-290.08,0.00022,30]
[419812428,1775393466164,-2162.0,0.00022,2]
[419812429,1775393466174,-2617.0,0.00022,2]
[419812430,1775393466185,-466.8112,0.00022,2]
[419812431,1775393466195,-151.0,0.00022003,5]
[419812432,1775393466204,-1050.06991849,0.00022017,5]
[419812433,1775393466214,-1124.71383267,0.00022017,5]
[419812434,1775393466224,-1105.14967646,0.00022017,5]
[419812435,1775393466234,-1107.2724306,0.00022017,5]
[419812436,1775393466243,-1090.57438961,0.00022017,5]
[419812437,1775393466253,-1092.83022865,0.00022017,5]
[419812438,1775393466262,-498.68757259,0.000221,2]
[419812439,1775393466271,-242.35090659,0.0002211,2]
[419812440,1775393466281,-338.0,0.00022316,9]
[419812441,1775393466290,-599.60298507,0.00022346,2]
[419812442,1775393466301,-747.8093786,0.00022346,2]
[419812443,1775393466310,-200.0,0.00022347,2]
[419812444,1775393466320,-1712.93078312,0.00022347,2]
[419812445,1775393466331,-209.40437684,0.00022347,2]
[419812446,1775393466340,-200.0,0.00022347,2]
[419812447,1775393466350,-8225.0,0.00022428,2]
[419812448,1775393466359,-825.0,0.0002246,30]
[419812449,1775393466369,-750.0,0.00022466,2]
[419812450,1775393466379,-568.13296972,0.00022466,2]
[419812451,1775393466388,-35814.81858715,0.000225,2]
[419812452,1775393466398,-1115.0,0.0002259,2]
[419812453,1775393466408,-3636.7936387,0.000226,2]
[419812454,1775393466417,-306.0,0.000226,2]
[419812455,1775393466427,-1000.0,0.000226,2]
[419812456,1775393466436,-159.82,0.00022603,2]
[419812457,1775393466446,-527.86130025,0.0002271,2]
[419812458,1775393466456,-12120.47,0.0002274,2]
[419812459,1775393466465,-4669.26,0.0002274,2]
[419812460,1775393466475,-500.0,0.00022748,2]
[419812461,1775393466484,-250.0,0.0002281,4]
[419812462,1775393466494,-508.0,0.0002284,10]
[419812463,1775393466503,-1776.30922209,0.00022895,2]
[419812464,1775393466513,-217.15233878,0.00022895,2]
[419812465,1775393466523,-205.79985871,0.00022895,2]
[419812466,1775393466532,-1592.56,0.00022927,2]
[419812467,1775393466542,-719.68,0.00022999,2]
[419812468,1775393466552,-719.68,0.00022999,2]
[419812469,1775393466561,-719.68,0.00022999,2]
[419812470,1775393466571,-719.68,0.00022999,2]
[419812471,1775393466580,-719.80978926,0.00022999,2]
[419812472,1775393466590,-751.29,0.00022999,2]
[419812473,1775393466599,-751.29,0.00022999,2]
[419812474,1775393466608,-751.29,0.00022999,2]
[419812475,1775393466618,-751.29,0.00022999,2]
[419812476,1775393466627,-751.2910465,0.00022999,2]
[419812477,1775393466637,-806.66,0.00022999,2]
[419812478,1775393466646,-806.66,0.00022999,2]
[419812479,1775393466656,-806.66,0.00022999,2]
[419812480,1775393466666,-806.66,0.00022999,2]
[419812481,1775393466676,-806.84950636,0.00022999,2]
[419812482,1775393466685,-1268.28,0.00022999,2]
[419812483,1775393466694,-1268.28,0.00022999,2]
[419812484,1775393466704,-1268.28,0.00022999,2]
[419812485,1775393466713,-1268.28,0.00022999,2]
[419812486,1775393466723,-1268.28484396,0.00022999,2]
[419812487,1775393466732,-39377.90349069,0.00023,2]
[419812488,1775393467775,-2526.9143444,0.00023,2]
[419812489,1775393467786,-576.38858,0.00023,2]
[419812490,1775393467798,-4897.49151961,0.00023,2]
[419812491,1775393467838,500.0,8.928e-05,2]
[419812492,1775393467883,500.0,8.928e-05,2]
[419812493,1775393467921,-123734.11370442,0.00023,2]
[419812494,1775393467930,-3354.42276103,0.00023,2]
[419812495,1775393467939,-1464.0,0.00023,2]
[419812496,1775393467949,-1206.0,0.00023,2]
[419812497,1775393467958,-182.565876,0.00023,2]
[419812498,1775393467967,-182.565876,0.00023,2]
[419812499,1775393467976,-182.565876,0.00023,2]
[419812500,1775393467985,-182.565876,0.00023,2]
[419812501,1775393467995,-500.0,0.00023,2]
[419812502,1775393468004,-749.0,0.00023,2]
[419812503,1775393468013,-153.0,0.00023,2]
[419812504,1775393468023,-1356.0,0.00023,2]
[419812505,1775393468032,-2162.0,0.00023,2]
[419812506,1775393468042,-151.0,0.00023,2]
[419812507,1775393468052,-576.608559,0.00023,2]
[419812508,1775393468062,-576.608559,0.00023,2]
[419812509,1775393468071,-151.0,0.00023,2]
[419812510,1775393468080,-151.0,0.00023,2]
[419812511,1775393468089,-576.608559,0.00023,2]
[419812512,1775393468099,-151.0,0.00023,2]
[419812513,1775393468109,-576.608559,0.00023,2]
[419812514,1775393468118,-165.351246,0.00023,2]
[419812515,1775393468127,-151.0,0.00023,2]
[419812516,1775393468136,-151.0,0.00023,2]
[419812517,1775393468146,-2617.0,0.00023,2]
[419812518,1775393468156,-190.86802189,0.00023003,5]
[419812519,1775393468165,-1724.7,0.00023011,2]
[419812520,1775393468174,-850.0,0.00023014,2]
[419812521,1775393468184,-8533.0,0.00023157,2]
[419812522,1775393468195,-150.0,0.00023165,10]
[419812523,1775393468206,-1411.43,0.0002328,30]
[419812524,1775393468215,-2000.0,0.00023288,17]
[419812525,1775393468225,-150.0,0.00023288,2]
[419812526,1775393468235,-1572.0,0.00023378,3]
[419812527,1775393468244,-2000.0,0.00023436,2]
[419812528,1775393468256,-1842.03266331,0.00023443,2]
[419812529,1775393468265,-225.18697532,0.00023443,2]
[419812530,1775393468274,-180.0,0.00023496,2]
[419812531,1775393468283,-529.5715,0.000235,2]
[419812532,1775393468293,-6579.8,0.00023532,2]
[419812533,1775393468302,-1042.34752007,0.00023562,2]
[419812534,1775393468314,-261.0,0.00023575,2]
[419812535,1775393468325,-162.0,0.00023698,3]
[419812536,1775393468335,-1115.0,0.0002372,2]
[419812537,1775393468344,-2811.0,0.00023753,3]
[419812538,1775393468353,-309.0,0.00023765,2]
[419812539,1775393468362,-2000.0,0.000238,2]
[419812540,1775393468371,-500.0,0.00023808,2]
[419812541,1775393468381,-200.0,0.00023808,2]
[419812542,1775393468391,-370.52,0.00023898,2]
[419812543,1775393468400,-178.56657148,0.0002392,2]
[419812544,1775393468410,-1910.18787185,0.00023991,2]
[419812545,1775393468421,-174.61919141,0.00023991,2]
[419812546,1775393468431,-380.0,0.00023993,2]
[419812547,1775393468441,-500.0,0.00024,3]
[419812548,1775393468451,-500.0,0.00024,3]
[419812549,1775393468461,-1464.0,0.00024,2]
[419812550,1775393468471,-1206.0,0.00024,2]
[419812551,1775393468480,-200.0,0.00024,5]
[419812552,1775393468491,-749.0,0.00024,2]
[419812553,1775393468501,-153.0,0.00024,2]
[419812554,1775393468511,-1356.0,0.00024,2]
[419812555,1775393468521,-2162.0,0.00024,2]
[419812556,1775393468531,-2617.0,0.00024,2]
[419812557,1775393468541,-1046.0,0.0002402,2]
[419812558,1775393468551,-1347.0,0.0002402,2]
[419812559,1775393468561,-3522.0,0.0002402,2]
[419812560,1775393468571,-1263.0,0.0002402,2]
[419812561,1775393468580,-415.0,0.0002402,2]
[419812562,1775393468591,-3770.0,0.0002402,2]
[419812563,1775393468602,-151.0,0.0002402,2]
[419812564,1775393468612,-162.049872,0.0002402,2]
[419812565,1775393468622,-508.0,0.00024056,11]
[419812566,1775393468632,-287.0,0.00024073,10]
[419812567,1775393468642,-2811.0,0.00024073,3]
[419812568,1775393468652,-150.0,0.00024077,10]
[419812569,1775393468662,-178.0,0.000241,2]
[419812570,1775393468673,-408.0,0.0002411,2]
[419812571,1775393468682,-1435.0,0.0002411,10]
[419812572,1775393468692,-3377.44202693,0.00024129,2]
[419812573,1775393468702,-1500.0,0.00024151,2]
[419812574,1775393468712,-750.0,0.00024151,2]
[419812575,1775393468722,-600.0,0.00024151,2]
[419812576,1775393468731,-250.0,0.00024301,5]
[419812577,1775393468742,-1000.0,0.00024394,30]
[419812578,1775393468752,-1980.86482311,0.00024539,2]
[419812579,1775393468762,-2000.0,0.00024658,27]
[419812580,1775393468773,-1000.0,0.00024658,2]
[419812581,1775393468783,-151.0,0.00024658,2]
[419812582,1775393468792,-598.64,0.00024658,2]
[419812583,1775393468803,-151.0,0.00024658,2]
[419812584,1775393468814,-151.0,0.00024658,2]
[419812585,1775393468825,-151.0,0.00024658,2]
[419812586,1775393468835,-294.964917,0.00024658,2]
[419812587,1775393468846,-151.0,0.00024658,2]
[419812588,1775393468856,-151.0,0.00024658,2]
[419812589,1775393468868,-151.0,0.00024658,2]
[419812590,1775393468880,-150.0,0.00024658,2]
[419812591,1775393468891,-156.58352449,0.00024658,30]
[419812592,1775393468902,-222.19382938,0.00024658,2]
[419812593,1775393468912,-1587.85,0.00024706,30]
[419812594,1775393468922,-1661.6,0.00024781,2]
[419812595,1775393468933,-26786.09931769,0.00024799,2]
[419812596,1775393468944,-2824.8873097,0.00024806,2]
[419812597,1775393468955,-150.0,0.00024899,2]
[419812598,1775393468965,-150.0,0.00024899,2]
[419812599,1775393468977,-150.0,0.00024899,2]
[419812600,1775393468987,-150.0,0.00024899,2]
[419812601,1775393468996,-150.0,0.00024899,2]
[419812602,1775393469008,-150.0,0.00024899,2]
[419812603,1775393469018,-150.0,0.00024899,2]
[419812604,1775393469030,-150.0,0.00024899,2]
[419812605,1775393469041,-150.0,0.00024899,2]
[419812606,1775393469051,-243.89669454,0.00024899,2]
[419812607,1775393469062,-374817.802401,0.000249,2]
[419812608,1775393469106,500.0,8.928e-05,2]
[419812609,1775393469154,500.0,8.928e-05,2]
[419812610,1775393469192,-1611.9644338,0.000249,2]
[419812611,1775393469205,-928.49979221,0.000249,2]
[419812612,1775393469218,-2254.26585911,0.000249,2]
[419812613,1775393469231,-3211.04331597,0.000249,2]
[419812614,1775393469245,-5963.65304999,0.000249,2]
[419812615,1775393469295,500.0,8.928e-05,2]
[419812616,1775393469368,500.0,8.928e-05,2]
[419812617,1775393470091,-1651.0,0.00013429,2]
[419812618,1775393470103,-214026.99289992,0.000249,2]
[419812619,1775393470120,-347.358444,0.000249,2]
[419812620,1775393470130,-151.0,0.000249,2]
[419812621,1775393470140,-347.358444,0.000249,2]
[419812622,1775393470149,-151.0,0.000249,2]
[419812623,1775393470160,-347.358444,0.000249,2]
[419812624,1775393470170,-347.358444,0.000249,2]
[419812625,1775393470181,-151.0,0.000249,2]
[419812626,1775393470190,-151.0,0.000249,2]
[419812627,1775393470200,-151.0,0.000249,2]
[419812628,1775393470210,-151.0,0.000249,2]
[419812629,1775393470220,-151.0,0.000249,2]
[419812630,1775393470230,-600.7696,0.000249,2]
[419812631,1775393470241,-151.0,0.000249,2]
[419812632,1775393470251,-151.0,0.000249,2]
[419812633,1775393470261,-151.0,0.000249,2]
[419812634,1775393470270,-1115.0,0.00024906,2]
[419812635,1775393470280,-825.0,0.0002492,60]
[419812636,1775393470290,-500.0,0.00024932,2]
[419812637,1775393470300,-500.0,0.00024932,2]
[419812638,1775393470309,-1630.93625801,0.00025,30]
[419812639,1775393470319,-1464.0,0.00025,2]
[419812640,1775393470329,-1206.0,0.00025,2]
[419812641,1775393470339,-550.0,0.00025,2]
[419812642,1775393470349,-220.0,0.00025,3]
[419812643,1775393470359,-749.0,0.00025,2]
[419812644,1775393470369,-153.0,0.00025,2]
[419812645,1775393470379,-1356.0,0.00025,2]
[419812646,1775393470388,-2162.0,0.00025,2]
[419812647,1775393470398,-2617.0,0.00025,2]
[419812648,1775393470408,-500.0,0.00025039,30]
[419812649,1775393470418,-621.78829552,0.00025085,2]
[419812650,1775393470427,-775.47832561,0.00025085,2]
[419812651,1775393470437,-2054.15682157,0.00025087,2]
[419812652,1775393470447,-1592.56,0.0002509,2]
[419812653,1775393470457,-508.0,0.00025273,12]
[419812654,1775393470467,-6579.8,0.00025305,2]
[419812655,1775393470477,-35516.86407627,0.0002539,2]
[419812656,1775393470487,-474.79089467,0.00025397,2]
[419812657,1775393470497,-250.0,0.00025464,6]
[419812658,1775393470507,-500.0,0.00025504,120]
[419812659,1775393470516,-474.0,0.00025573,11]
[419812660,1775393470526,-157.16731866,0.00025779,120]
[419812661,1775393470536,-158.5256591,0.00025779,120]
[419812662,1775393470545,-151.06088247,0.00025779,120]
[419812663,1775393470555,-605.44594878,0.0002599,2]
[419812664,1775393470566,-150.0,0.00026,2]
[419812665,1775393470576,-4557.75612577,0.00026,2]
[419812666,1775393470586,-218.12444798,0.00026,2]
[419812667,1775393470596,-1464.0,0.00026,2]
[419812668,1775393470606,-1206.0,0.00026,2]
[419812669,1775393470616,-200.0,0.00026,5]
[419812670,1775393470627,-749.0,0.00026,2]
[419812671,1775393470638,-162.69235604,0.00026,2]
[419812672,1775393470652,-1356.0,0.00026,2]
[419812673,1775393470663,-2162.0,0.00026,2]
[419812674,1775393470673,-2617.0,0.00026,2]
[419812675,1775393470684,-2000.0,0.00026027,37]
[419812676,1775393470694,-400.0,0.00026027,2]
[419812677,1775393470705,-400.0,0.00026027,2]
[419812678,1775393470715,-288.0,0.00026027,2]
[419812679,1775393470726,-250.0,0.00026027,2]
[419812680,1775393470737,-250.0,0.00026027,2]
[419812681,1775393470747,-180.0,0.00026027,2]
[419812682,1775393470757,-400.0,0.00026027,2]
[419812683,1775393470768,-400.0,0.00026027,2]
[419812684,1775393471151,-280.0,0.00026027,2]
[419812685,1775393471190,-150.0,0.00026028,2]
[419812686,1775393471210,-1764.28,0.00026131,30]
[419812687,1775393471219,-1115.0,0.00026151,2]
[419812688,1775393471229,-290.08,0.00026177,30]
[419812689,1775393471238,-500.0,0.00026221,2]
[419812690,1775393471247,-2000.0,0.00026243,2]
[419812691,1775393471257,-1068.40177547,0.000263,2]
[419812692,1775393471266,-474.79089467,0.00026397,2]
[419812693,1775393471276,-27704.37935885,0.000264,2]
[419812694,1775393471285,-681.5399,0.000264,2]
[419812695,1775393471295,-508.0,0.00026489,13]
[419812696,1775393471305,-1000.0,0.00026849,7]
[419812697,1775393471314,-800.0,0.00026986,120]
[419812698,1775393471324,-800.0,0.00026986,120]